bitfinex/quotes_BTCUSD_20220109
["timestamp","ask_amount","ask_price","bid_price","bid_amount"]
[1641757602743,0.01512561,42570.0,42567.0,0.00020593]
[1641757603197,0.01512561,42570.0,42566.0,0.00020593]
[1641757603794,0.01512561,42570.0,42568.0,0.00127302]
[1641757603995,0.01512561,42570.0,42569.0,1.592144]
[1641757604195,0.00012561,42570.0,42569.0,1.639144]
[1641757604595,0.00012561,42570.0,42569.0,1.77660157]
[1641757605997,6.561e-05,42570.0,42569.0,1.77660157]
[1641757606839,6.561e-05,42570.0,42569.0,1.79460157]
[1641757607037,0.00033058,42581.0,42577.0,0.25363281]
[1641757607239,0.00033058,42581.0,42579.0,0.058703]
[1641757607438,0.88122079,42584.0,42579.0,0.058703]
[1641757607939,0.88122079,42584.0,42577.0,0.37103881]
[1641757608839,0.88122079,42584.0,42579.0,0.05891089]
[1641757609439,0.88122079,42584.0,42579.0,0.00020589]
[1641757609640,0.88122079,42584.0,42579.0,0.00041178]
[1641757609841,0.88122079,42584.0,42579.0,0.00020589]
[1641757610041,0.88122079,42584.0,42579.0,0.05891089]
[1641757610696,0.0001517,42586.0,42579.0,0.05911678]
[1641757610898,0.015,42584.0,42579.0,0.05891089]
[1641757611099,0.26877093,42581.0,42579.0,0.00020589]
[1641757611298,1.03472542,42580.0,42579.0,0.00020589]
[1641757611499,0.8810149,42570.0,42569.0,0.39427052]
[1641757611696,0.8810149,42570.0,42569.0,0.383437]
[1641757612897,0.8870149,42570.0,42569.0,0.425437]
[1641757613297,0.8870149,42570.0,42569.0,0.042]
[1641757614139,0.8810149,42570.0,42565.0,0.117437]
[1641757614740,0.8810149,42570.0,42565.0,0.164437]
[1641757614941,0.8870149,42570.0,42566.0,0.383437]
[1641757616243,0.8810149,42570.0,42566.0,0.00021284]
[1641757616941,0.8830149,42570.0,42566.0,0.02821284]
[1641757617143,0.00011654,42569.0,42566.0,0.02821284]
[1641757618189,0.00011654,42569.0,42567.0,0.383437]
[1641757618789,0.00111654,42569.0,42567.0,0.422437]
[1641757620092,0.00011654,42569.0,42567.0,0.383437]
[1641757620295,0.00011654,42569.0,42567.0,0.442159]
[1641757620592,0.00011654,42569.0,42568.0,0.34771353]
[1641757620795,0.00211654,42569.0,42568.0,0.53571953]
[1641757621097,0.00211654,42569.0,42568.0,0.538006]
[1641757622041,0.00211654,42569.0,42568.0,1.238006]
[1641757622242,0.00011654,42569.0,42568.0,1.238006]
[1641757623242,0.00011654,42569.0,42568.0,0.538006]
[1641757623845,0.00011654,42569.0,42568.0,0.88259295]
[1641757624041,0.00011654,42569.0,42568.0,1.38259295]
[1641757624842,0.00011654,42569.0,42568.0,1.42006083]
[1641757625143,0.00011654,42569.0,42568.0,1.038006]
[1641757625591,0.00011654,42569.0,42568.0,1.39173802]
[1641757625791,0.00011654,42569.0,42568.0,1.42920364]
[1641757625990,0.00011654,42569.0,42568.0,1.39173802]
[1641757626592,0.00011654,42569.0,42568.0,1.54122959]
[1641757626793,0.00011654,42569.0,42568.0,1.61922959]
[1641757626992,0.00011654,42569.0,42568.0,1.96922959]
[1641757627194,0.00011654,42569.0,42568.0,2.00669431]
[1641757627592,0.00011654,42569.0,42568.0,1.70669431]
[1641757628093,0.00011654,42569.0,42568.0,1.67569431]
[1641757628697,0.00011654,42569.0,42568.0,1.62569431]
[1641757628896,0.00011654,42569.0,42568.0,1.30596229]
[1641757629140,0.00011654,42569.0,42568.0,0.767206]
[1641757630141,0.00011654,42569.0,42568.0,0.733206]
[1641757630739,0.00011654,42569.0,42568.0,0.77067387]
[1641757630938,0.00011654,42569.0,42568.0,1.44267387]
[1641757631350,0.00011654,42569.0,42568.0,1.64276167]
[1641757631940,0.00011654,42569.0,42568.0,1.04276167]
[1641757632139,0.00011654,42569.0,42568.0,0.97076167]
[1641757632992,0.00011654,42569.0,42568.0,1.05976167]
[1641757633791,0.00011654,42569.0,42568.0,1.0222938]
[1641757634193,0.00011654,42569.0,42568.0,1.02076719]
[1641757634392,0.00011654,42569.0,42568.0,0.9832938]
[1641757634593,0.00011654,42569.0,42568.0,1.02076781]
[1641757634793,0.00011654,42569.0,42568.0,0.635006]
[1641757634995,0.00011654,42569.0,42568.0,0.676006]
[1641757635192,0.00011654,42569.0,42568.0,0.71351878]
[1641757635794,0.00011654,42569.0,42568.0,0.36351878]
[1641757635995,0.00011654,42569.0,42568.0,0.31351878]
[1641757636194,0.00011654,42569.0,42568.0,0.235006]
[1641757636843,0.00011654,42569.0,42568.0,0.313006]
[1641757637444,0.8810149,42570.0,42569.0,0.54160578]
[1641757638843,0.8880149,42570.0,42569.0,0.54160578]
[1641757640045,0.8810149,42570.0,42569.0,0.54160578]
[1641757640690,0.26419463,42573.0,42569.0,0.54160578]
[1641757640890,0.007,42570.0,42569.0,0.54160578]
[1641757641091,0.007,42570.0,42569.0,0.04402788]
[1641757641291,0.007,42570.0,42567.0,0.05892892]
[1641757641491,0.007,42570.0,42568.0,0.232003]
[1641757641896,0.00711322,42570.0,42568.0,0.232003]
[1641757642494,0.0012761,42568.0,42567.0,0.00020592]
[1641757643293,1.1935331,42568.0,42567.0,0.00020592]
[1641757643493,1.1347871,42568.0,42567.0,0.00020592]
[1641757643893,1.1347871,42568.0,42565.0,0.00020592]
[1641757643894,0.0587437,42567.0,42565.0,0.00020592]
[1641757644143,1.68522581,42566.0,42565.0,0.00020592]
[1641757644343,1.70996581,42566.0,42565.0,0.00020592]
[1641757644549,0.80996581,42566.0,42565.0,0.00020592]
[1641757644942,0.80996581,42566.0,42564.0,0.00020593]
[1641757644943,1.24570571,42566.0,42564.0,0.00020593]
[1641757645143,0.42176066,42565.0,42564.0,0.00020593]
[1641757645342,0.80527166,42565.0,42564.0,0.00020593]
[1641757645845,0.79652562,42565.0,42563.0,0.00020593]
[1641757646043,0.383511,42564.0,42563.0,0.00020593]
[1641757646846,0.402511,42564.0,42563.0,0.00020593]
[1641757647048,0.402511,42564.0,42561.0,0.00020593]
[1641757647345,0.019,42564.0,42561.0,0.00020593]
[1641757648192,0.30171481,42566.0,42560.0,0.00020594]
[1641757648193,0.23326051,42566.0,42560.0,0.00020594]
[1641757648391,0.38473066,42565.0,42560.0,0.00020594]
[1641757648592,0.00121966,42565.0,42560.0,0.00020594]
[1641757648994,0.02221966,42565.0,42560.0,0.00020594]
[1641757649293,0.02221966,42565.0,42561.0,0.00020594]
[1641757649493,0.021,42565.0,42561.0,0.00020594]
[1641757650093,0.23326051,42566.0,42561.0,0.00020594]
[1641757650294,0.23326051,42566.0,42561.0,0.00041188]
[1641757650493,0.1,42565.0,42562.0,0.4083803]
[1641757651298,0.00125503,42563.0,42562.0,0.4083803]
[1641757651497,0.98476603,42563.0,42562.0,0.4083803]
[1641757651946,1.08486613,42563.0,42562.0,0.4083803]
[1641757652142,0.48486613,42563.0,42562.0,0.4083803]
[1641757652746,0.0001001,42563.0,42562.0,0.4083803]
[1641757652945,0.0201001,42563.0,42562.0,0.4083803]
[1641757653143,0.0201001,42563.0,42562.0,0.6404273]
[1641757654143,0.0001001,42563.0,42562.0,0.6404273]
[1641757654846,0.0481001,42563.0,42562.0,0.4083803]
[1641757656095,0.0001001,42563.0,42562.0,0.4083803]
[1641757656798,0.0001001,42563.0,42562.0,1.50660023]
[1641757656999,0.01220922,42563.0,42562.0,1.73864723]
[1641757657898,0.01220922,42563.0,42562.0,1.3904273]
[1641757658101,0.01220922,42563.0,42562.0,0.4083803]
[1641757658102,0.00020922,42563.0,42562.0,0.4083803]
[1641757658699,0.45020922,42563.0,42562.0,0.4083803]
[1641757658899,0.74055088,42563.0,42562.0,0.4083803]
[1641757659153,1.12406188,42563.0,42562.0,0.4083803]
[1641757659754,1.56252548,42563.0,42562.0,0.4083803]
[1641757660155,1.64552548,42563.0,42562.0,0.4083803]
[1641757660755,1.64552548,42563.0,42560.0,0.00020594]
[1641757660956,0.70630201,42561.0,42560.0,0.00020594]
[1641757661158,0.383511,42561.0,42560.0,0.00020594]
[1641757661359,0.80405239,42561.0,42560.0,0.00020594]
[1641757661558,0.383511,42561.0,42560.0,0.00020594]
[1641757662662,0.383511,42561.0,42558.0,0.00020594]
[1641757662896,0.383511,42560.0,42558.0,0.00020594]
[1641757663595,0.383511,42560.0,42557.0,0.00020595]
[1641757664797,0.383511,42560.0,42556.0,0.00020595]
[1641757664997,0.395511,42560.0,42556.0,0.00020595]
[1641757666198,0.383511,42560.0,42556.0,0.00020595]
[1641757666844,0.383511,42560.0,42556.0,0.0004119]
[1641757667044,0.00010867,42559.0,42556.0,0.00020595]
[1641757667347,0.383511,42558.0,42556.0,0.00020595]
[1641757668145,0.383511,42558.0,42555.0,0.00020595]
[1641757669148,0.32110955,42556.0,42554.0,0.00020595]
[1641757670149,0.29330103,42556.0,42554.0,0.00020595]
[1641757670591,0.00010867,42559.0,42554.0,0.00020595]
[1641757670992,0.001,42556.0,42554.0,0.00020595]
[1641757671594,0.61431999,42555.0,42554.0,0.00020595]
[1641757671993,0.71431999,42555.0,42554.0,0.00020595]
[1641757672193,0.71431999,42555.0,42553.0,0.00020596]
[1641757672396,0.57098886,42554.0,42553.0,0.00020596]
[1641757672594,0.95449986,42554.0,42553.0,0.00020596]
[1641757672999,0.97049986,42554.0,42544.0,0.69622314]
[1641757673195,0.27180272,42546.0,42544.0,0.69622314]
[1641757673397,0.27180272,42546.0,42540.0,0.00082411]
[1641757673597,0.00129263,42541.0,42540.0,0.00082411]
[1641757673798,0.00129263,42541.0,42540.0,0.00082357]
[1641757674846,0.00129263,42541.0,42538.0,0.00020587]
[1641757675046,0.01529263,42541.0,42538.0,0.00020587]
[1641757676048,0.23498576,42540.0,42537.0,0.00020587]
[1641757676647,0.383545,42539.0,42537.0,0.00020587]
[1641757676847,0.23498576,42540.0,42537.0,0.00020587]
[1641757677148,0.383545,42539.0,42536.0,0.00020601]
[1641757677347,0.25109228,42540.0,42536.0,0.00020601]
[1641757678102,0.25109228,42540.0,42535.0,0.00020601]
[1641757678306,0.23509228,42540.0,42535.0,0.00020601]
[1641757679201,0.25209228,42540.0,42535.0,0.00020601]
[1641757679401,0.01710652,42540.0,42535.0,0.00020601]
[1641757680202,0.00010652,42540.0,42535.0,0.00041202]
[1641757680402,0.33227972,42536.0,42535.0,0.00020601]
[1641757681003,0.73782472,42536.0,42535.0,0.00020601]
[1641757681404,0.73906659,42536.0,42535.0,0.00020601]
[1641757681649,0.83906659,42536.0,42533.0,0.00020602]
[1641757681850,0.383545,42535.0,42533.0,0.00020602]
[1641757682747,0.383545,42535.0,42532.0,0.00020602]
[1641757682946,0.398545,42535.0,42532.0,0.00020602]
[1641757683747,0.398545,42535.0,42531.0,0.00020602]
[1641757683946,0.498545,42535.0,42531.0,0.00020602]
[1641757684347,0.483545,42535.0,42531.0,0.00020602]
[1641757684947,0.498545,42535.0,42531.0,0.00020602]
[1641757685802,0.498545,42535.0,42531.0,0.00041204]
[1641757685998,0.33240249,42536.0,42531.0,0.00020602]
[1641757686203,0.383552,42535.0,42531.0,0.00020602]
[1641757686402,0.40663249,42536.0,42531.0,0.00020602]
[1641757686999,0.00010584,42534.0,42531.0,0.00020602]
[1641757688203,0.00010584,42534.0,42530.0,0.00020602]
[1641757689004,0.1,42533.0,42530.0,0.00020602]
[1641757689253,0.1,42533.0,42530.0,0.00020603]
[1641757689254,1.533552,42531.0,42530.0,0.00020603]
[1641757689453,1.53478064,42531.0,42530.0,0.00020603]
[1641757689653,1.63478064,42531.0,42530.0,0.00020603]
[1641757689854,1.68478064,42531.0,42530.0,0.00020603]
[1641757690053,1.94637221,42531.0,42530.0,0.00020603]
[1641757690454,0.05880812,42526.0,42522.0,0.00082424]
[1641757690755,0.383552,42525.0,42522.0,0.00082424]
[1641757690954,0.18033812,42526.0,42522.0,0.00082424]
[1641757690955,0.30122371,42523.0,42522.0,0.00082424]
[1641757691151,0.78477571,42523.0,42522.0,0.00082424]
[1641757691355,1.08130383,42523.0,42522.0,0.00082424]
[1641757691551,1.08130383,42523.0,42512.0,0.42]
[1641757691752,0.25474453,42514.0,42512.0,0.42]
[1641757692755,0.81658117,42522.0,42512.0,0.42]
[1641757693008,0.007,42514.0,42512.0,0.42]
[1641757694309,0.32749692,42517.0,42512.0,0.42]
[1641757695010,0.34049692,42517.0,42512.0,0.42]
[1641757695810,0.34049692,42517.0,42512.0,0.420213]
[1641757696212,0.013,42517.0,42512.0,0.420213]
[1641757697047,0.00010719,42516.0,42512.0,0.420213]
[1641757698050,0.00010719,42516.0,42512.0,0.42020887]
[1641757698649,0.00010719,42516.0,42512.0,0.41520887]
[1641757699054,0.01210719,42516.0,42512.0,0.41520578]
[1641757700154,0.01210719,42516.0,42512.0,0.41541156]
[1641757700399,0.00010719,42516.0,42512.0,0.41520578]
[1641757701105,0.02610719,42516.0,42512.0,0.41520578]
[1641757701897,0.00010707,42515.0,42512.0,0.41520578]
[1641757702299,0.00010707,42515.0,42512.0,0.4154117]
[1641757702499,0.99010707,42517.0,42513.0,0.6]
[1641757703100,1.02210707,42517.0,42513.0,0.6]
[1641757703301,1.02210707,42517.0,42514.0,0.383552]
[1641757703501,0.42210707,42517.0,42515.0,0.00121786]
[1641757703701,0.42210707,42517.0,42516.0,1.639342]
[1641757703906,0.42210707,42517.0,42516.0,0.489342]
[1641757704159,0.39010707,42517.0,42516.0,0.489342]
[1641757704857,0.38510707,42517.0,42516.0,0.637542]
[1641757705060,0.38510707,42517.0,42516.0,1.304542]
[1641757706158,0.38510707,42517.0,42516.0,0.595752]
[1641757706359,0.38510707,42517.0,42516.0,0.578752]
[1641757707062,0.38510707,42517.0,42516.0,2.14576498]
[1641757707063,0.38521103,42517.0,42516.0,2.14576498]
[1641757707460,0.00020269,42523.0,42517.0,1.15]
[1641757707659,0.00020269,42523.0,42521.0,0.38483486]
[1641757707902,0.00020269,42523.0,42522.0,1.92101253]
[1641757708300,0.40514678,42537.0,42522.0,1.92101253]
[1641757708499,0.00020269,42534.0,42522.0,0.77101253]
[1641757708698,0.00020269,42534.0,42523.0,0.058784]
[1641757709300,0.24351222,42530.0,42523.0,0.105784]
[1641757709603,0.00020269,42534.0,42523.0,0.105784]
[1641757710301,0.42556923,42538.0,42523.0,0.105784]
[1641757710502,0.42556923,42538.0,42523.0,0.067084]
[1641757710702,0.29344494,42535.0,42523.0,0.067084]
[1641757710901,0.2952,42534.0,42523.0,0.067084]
[1641757711102,0.2952,42534.0,42523.0,0.080084]
[1641757711307,0.2952,42534.0,42523.0,0.63293893]
[1641757711970,0.0001018,42526.0,42523.0,0.56585493]
[1641757712171,0.3836538,42526.0,42523.0,0.56585493]
[1641757712370,0.3836538,42526.0,42523.0,0.55306086]
[1641757712568,0.4836538,42526.0,42523.0,0.55285817]
[1641757712767,0.27465532,42525.0,42523.0,0.55285817]
[1641757712968,0.383552,42524.0,42523.0,0.55285817]
[1641757713368,0.383552,42524.0,42523.0,0.55265224]
[1641757714569,0.27465532,42525.0,42523.0,0.55265224]
[1641757714969,0.015,42524.0,42523.0,0.55265224]
[1641757716010,0.398552,42524.0,42523.0,0.55265224]
[1641757716212,0.383552,42524.0,42523.0,0.55265224]
[1641757717010,0.39865356,42524.0,42523.0,0.55265224]
[1641757718214,0.38365356,42524.0,42523.0,0.55265224]
[1641757718812,0.00010156,42524.0,42523.0,0.55265224]
[1641757719015,0.01510156,42524.0,42523.0,0.55265224]
[1641757719460,0.058791,42537.0,42524.0,0.65]
[1641757719656,0.30016,42539.0,42524.0,1.00649933]
[1641757719855,0.30719777,42535.0,42524.0,1.00649933]
[1641757720455,0.2956,42540.0,42531.0,0.33543058]
[1641757720657,0.2956,42540.0,42533.0,0.38599151]
[1641757721158,1.27304003,42544.0,42533.0,0.38599151]
[1641757721559,0.9141,42542.0,42533.0,0.38599151]
[1641757722059,9.971e-05,42535.0,42533.0,0.38599151]
[1641757722357,9.971e-05,42535.0,42534.0,0.74008608]
[1641757723033,0.04909971,42535.0,42534.0,0.74008608]
[1641757723233,0.04909971,42535.0,42534.0,0.35653408]
[1641757723434,0.04909971,42535.0,42530.0,0.35579726]
[1641757724236,9.971e-05,42535.0,42530.0,0.78616049]
[1641757725038,0.01609971,42535.0,42530.0,0.78616049]
[1641757725839,0.01609971,42535.0,42530.0,0.35459484]
[1641757726041,0.01609971,42535.0,42526.0,0.00020591]
[1641757726439,0.8,42534.0,42525.0,0.37144898]
[1641757726656,0.8,42534.0,42526.0,0.00020604]
[1641757726856,9.971e-05,42535.0,42526.0,0.28610319]
[1641757727067,0.007,42534.0,42526.0,0.28610319]
[1641757727456,0.24617557,42540.0,42527.0,1.15]
[1641757727658,0.24617557,42540.0,42528.0,0.35588318]
[1641757727863,0.33409266,42533.0,42528.0,0.35588318]
[1641757728260,0.33409266,42533.0,42526.0,0.28717658]
[1641757728962,0.33409266,42533.0,42526.0,0.00127943]
[1641757729162,0.34309266,42533.0,42526.0,0.035]
[1641757730063,9.167e-05,42532.0,42526.0,0.035]
[1641757730264,9.167e-05,42532.0,42524.0,0.29937401]
[1641757730512,0.05888545,42532.0,42524.0,0.29937401]
[1641757730706,0.05888545,42532.0,42522.0,0.35417886]
[1641757731008,0.07788545,42532.0,42524.0,0.00021297]
[1641757731206,0.00015787,42531.0,42524.0,0.00021297]
[1641757731908,0.00015787,42531.0,42526.0,0.27652848]
[1641757732111,0.00025399,42531.0,42526.0,0.27652848]
[1641757732310,0.00025398,42531.0,42526.0,0.27652848]
[1641757732709,0.00025398,42531.0,42524.0,0.00021297]
[1641757733113,0.01725398,42531.0,42524.0,0.00021297]
[1641757733310,0.01725399,42531.0,42524.0,0.00021297]
[1641757733712,0.01725399,42531.0,42524.0,0.29730456]
[1641757734347,0.01725399,42531.0,42524.0,0.00020993]
[1641757734348,0.0174037,42531.0,42524.0,0.00020993]
[1641757734548,0.01724583,42531.0,42524.0,0.00020993]
[1641757735148,0.03624583,42531.0,42524.0,0.00020993]
[1641757735348,0.03624583,42531.0,42525.0,0.26579554]
[1641757735651,0.03624879,42531.0,42525.0,0.26579554]
[1641757736247,0.00024879,42531.0,42525.0,0.26579554]
[1641757737049,9.6e-05,42530.0,42525.0,0.26579554]
[1641757739204,0.004096,42530.0,42525.0,0.26579554]
[1641757739703,0.24114789,42529.0,42525.0,0.26579554]
[1641757741109,0.24514789,42529.0,42525.0,0.26579554]
[1641757741507,0.24514789,42529.0,42524.0,0.3506987]
[1641757741755,0.24514789,42529.0,42524.0,0.00020603]
[1641757741956,9.575e-05,42528.0,42524.0,0.00020603]
[1641757742163,9.575e-05,42528.0,42524.0,0.00041206]
[1641757742357,0.383552,42527.0,42524.0,0.00020603]
[1641757743056,0.399552,42527.0,42524.0,0.00020603]
[1641757743258,0.399552,42527.0,42524.0,0.00020537]
[1641757743454,0.399552,42527.0,42523.0,0.55276473]
[1641757743961,1.15,42526.0,42513.0,0.00112432]
[1641757744155,0.383552,42525.0,42513.0,0.00112432]
[1641757744356,0.31485942,42522.0,42513.0,0.00112432]
[1641757744556,0.32330804,42521.0,42513.0,0.00075845]
[1641757744756,0.26177479,42514.0,42513.0,0.00075845]
[1641757745404,0.009,42521.0,42513.0,0.00075845]
[1641757745610,0.383552,42520.0,42513.0,0.0003]
[1641757746407,0.25615733,42517.0,42513.0,0.0003]
[1641757747210,0.26415733,42517.0,42513.0,0.0003]
[1641757747608,0.26415733,42517.0,42513.0,0.00051299]
[1641757748314,0.25615733,42517.0,42513.0,0.00051299]
[1641757748712,0.383552,42516.0,42513.0,0.00072598]
[1641757748915,0.8247331,42516.0,42513.0,0.00051299]
[1641757749554,0.05882,42515.0,42513.0,0.00051299]
[1641757749754,0.83595078,42514.0,42513.0,0.00051299]
[1641757749953,0.83595078,42514.0,42513.0,0.0003]
[1641757750555,1.23595078,42514.0,42513.0,0.0003]
[1641757750960,0.89477252,42514.0,42513.0,0.0003]
[1641757751154,0.90677252,42514.0,42513.0,0.0003]
[1641757751954,0.90686659,42514.0,42511.0,0.000213]
[1641757752154,0.90686659,42514.0,42511.0,0.00020582]
[1641757752356,0.89486659,42514.0,42511.0,0.00020582]
[1641757753204,0.90786659,42514.0,42511.0,0.00020582]
[1641757753406,0.84904485,42514.0,42510.0,0.00020593]
[1641757753607,0.39664607,42514.0,42510.0,0.00020593]
[1641757753801,0.01309407,42514.0,42510.0,0.00020593]
[1641757754001,0.01309407,42514.0,42503.0,0.42]
[1641757754201,0.01309407,42514.0,42504.0,0.383552]
[1641757754401,9.407e-05,42514.0,42510.0,0.00020593]
[1641757755201,0.00709407,42514.0,42510.0,0.00020593]
[1641757755602,0.00709407,42514.0,42511.0,0.383552]
[1641757755801,0.00709407,42514.0,42506.0,0.57262563]
[1641757756001,0.00709407,42514.0,42507.0,0.383552]
[1641757756406,9.407e-05,42514.0,42507.0,0.383552]
[1641757757059,0.25625128,42517.0,42507.0,0.373552]
[1641757757355,0.005,42514.0,42505.0,0.058809]
[1641757757555,0.00016051,42513.0,42506.0,0.373854]
[1641757758356,0.00016051,42513.0,42506.0,0.432662]
[1641757758557,0.00016051,42513.0,42506.0,0.373854]
[1641757758761,0.0001605,42512.0,42506.0,0.373854]
[1641757759360,0.0001605,42512.0,42506.0,0.432661]
[1641757759759,0.0001605,42511.0,42506.0,0.432661]
[1641757761109,0.00116367,42511.0,42506.0,0.432661]
[1641757761909,9.359e-05,42510.0,42506.0,0.432661]
[1641757762909,9.359e-05,42510.0,42506.0,0.373854]
[1641757763110,0.00124909,42510.0,42506.0,0.432662]
[1641757764555,0.00024909,42510.0,42506.0,0.432662]
[1641757765154,0.00124909,42510.0,42506.0,0.432662]
[1641757766359,0.00024909,42510.0,42506.0,0.373854]
[1641757766958,0.00040448,42510.0,42506.0,0.373854]
[1641757767158,0.00040448,42510.0,42506.0,0.419854]
[1641757767159,9.347e-05,42509.0,42506.0,0.419854]
[1641757768010,9.347e-05,42509.0,42507.0,0.058807]
[1641757768211,9.347e-05,42509.0,42508.0,0.373841]
[1641757768410,0.99371761,42514.0,42509.0,0.65]
[1641757768612,0.00015537,42510.0,42507.0,0.058807]
[1641757769215,0.00215537,42510.0,42507.0,0.036]
[1641757769610,0.002,42510.0,42507.0,0.036]
[1641757770612,0.99371761,42514.0,42508.0,0.373836]
[1641757770812,0.99371761,42514.0,42504.0,0.4031539]
[1641757771018,0.4239431,42513.0,42504.0,0.1188539]
[1641757771235,0.4239431,42513.0,42508.0,0.006]
[1641757771413,0.383596,42512.0,42508.0,0.006]
[1641757771861,0.38375616,42512.0,42508.0,0.006]
[1641757772459,0.26461641,42506.0,42504.0,0.27375214]
[1641757772659,0.26461641,42506.0,42505.0,0.373865]
[1641757773060,0.26461641,42506.0,42504.0,0.00145893]
[1641757773260,0.27161641,42506.0,42505.0,0.044]
[1641757773659,0.007,42506.0,42505.0,0.044]
[1641757774264,0.007,42506.0,42505.0,0.444]
[1641757774465,0.00016014,42512.0,42505.0,0.773872]
[1641757774663,0.29979867,42508.0,42505.0,0.4]
[1641757775262,0.30879867,42508.0,42505.0,0.028]
[1641757776507,0.29979867,42508.0,42504.0,0.00020581]
[1641757777109,9.03e-05,42507.0,42504.0,0.03120581]
[1641757778407,9.03e-05,42507.0,42503.0,0.640676]
[1641757778608,9.03e-05,42507.0,42503.0,0.37247734]
[1641757779260,0.0080903,42507.0,42503.0,0.39947734]
[1641757780560,0.383596,42506.0,42503.0,0.37268339]
[1641757780761,0.383596,42506.0,42503.0,0.37247758]
[1641757781160,0.383596,42506.0,42503.0,0.38447758]
[1641757781161,0.391596,42506.0,42503.0,0.38447758]
[1641757781761,0.391596,42506.0,42503.0,0.38427153]
[1641757781961,9.006e-05,42505.0,42503.0,0.38427153]
[1641757782367,9.006e-05,42505.0,42503.0,0.37227153]
[1641757783308,0.01209006,42505.0,42503.0,0.37227153]
[1641757784412,9.006e-05,42505.0,42503.0,0.37227153]
[1641757785017,9.006e-05,42505.0,42504.0,0.65111566]
[1641757785213,0.01709006,42505.0,42504.0,0.65111566]
[1641757786515,9.006e-05,42505.0,42504.0,0.65111566]
[1641757787277,0.016,42505.0,42504.0,0.64611566]
[1641757788574,9.006e-05,42507.0,42504.0,0.64611566]
[1641757789176,0.44163928,42507.0,42504.0,0.64611566]
[1641757789377,0.383596,42506.0,42504.0,0.64611566]
[1641757790814,9.006e-05,42507.0,42504.0,0.64611566]
[1641757791008,0.99371761,42505.0,42504.0,0.64611566]
[1641757791210,0.99371761,42505.0,42504.0,0.66611566]
[1641757792009,0.99380767,42505.0,42504.0,0.66611566]
[1641757792408,0.99380767,42505.0,42504.0,0.64611566]
[1641757793211,0.99380767,42505.0,42504.0,0.66911566]
[1641757793212,1.00080767,42505.0,42504.0,0.66911566]
[1641757794567,0.99380767,42505.0,42504.0,0.64611566]
[1641757795168,1.00080767,42505.0,42504.0,0.66811566]
[1641757795372,1.00080767,42505.0,42504.0,0.66801556]
[1641757796468,0.99380767,42505.0,42504.0,0.64601556]
[1641757797167,0.99680767,42505.0,42504.0,0.67301556]
[1641757798506,0.99380767,42505.0,42504.0,0.64601556]
[1641757799208,0.005,42505.0,42504.0,0.66901556]
[1641757799413,0.005,42505.0,42504.0,1.20750456]
[1641757800009,0.005,42505.0,42504.0,2.10750456]
[1641757800209,0.005,42505.0,42504.0,2.56642413]
[1641757800408,0.00051275,42512.0,42504.0,2.59342413]
[1641757800613,0.00051275,42512.0,42509.0,0.27600613]
[1641757800812,0.00051275,42512.0,42510.0,0.42082]
[1641757801011,0.00035772,42512.0,42511.0,0.39637625]
[1641757801212,0.00035772,42512.0,42511.0,0.77018525]
[1641757801664,0.00035772,42512.0,42511.0,1.12600749]
[1641757801864,0.00035772,42512.0,42511.0,1.18480849]
[1641757802064,0.00035772,42512.0,42511.0,1.93480849]
[1641757802365,0.00015503,42512.0,42511.0,2.03180849]
[1641757802564,0.00015503,42512.0,42511.0,0.87598625]
[1641757802769,0.00015507,42514.0,42511.0,0.373809]
[1641757802966,0.00015507,42514.0,42504.0,0.64622161]
[1641757803168,0.00015507,42514.0,42505.0,0.373862]
[1641757803364,0.00915507,42514.0,42511.0,0.04]
[1641757803563,0.24395779,42513.0,42511.0,0.04]
[1641757804564,0.24395779,42513.0,42508.0,0.45495969]
[1641757805265,0.25295779,42513.0,42508.0,0.45495969]
[1641757805913,0.25311285,42513.0,42508.0,0.45495969]
[1641757806112,0.25311285,42513.0,42509.0,0.3514943]
[1641757806512,0.24411285,42513.0,42509.0,0.3514943]
[1641757806712,0.24411285,42513.0,42508.0,0.45495969]
[1641757807113,8.809e-05,42512.0,42508.0,0.45495969]
[1641757808115,0.00024315,42512.0,42508.0,0.45495969]
[1641757809361,0.01524315,42512.0,42508.0,0.45495969]
[1641757810660,0.07406216,42512.0,42508.0,0.45495969]
[1641757811061,0.05906216,42512.0,42508.0,0.45495969]
[1641757811262,0.07406216,42512.0,42508.0,0.45495969]
[1641757811461,0.383596,42511.0,42508.0,0.45495969]
[1641757811659,0.483596,42511.0,42508.0,0.45495969]
[1641757812061,0.38368397,42511.0,42508.0,0.45495969]
[1641757812461,0.48368397,42511.0,42508.0,0.45495969]
[1641757813309,0.49968397,42511.0,42508.0,0.45495969]
[1641757813809,0.49968397,42511.0,42504.0,0.6475021]
[1641757814010,0.05882255,42509.0,42504.0,0.64622161]
[1641757814210,0.82608498,42508.0,42504.0,0.64622161]
[1641757814613,0.82608498,42508.0,42504.0,0.64642765]
[1641757814614,0.92608498,42508.0,42504.0,0.64642765]
[1641757814810,0.92608498,42508.0,42504.0,0.6462216]
[1641757815210,0.047,42507.0,42504.0,0.6462216]
[1641757815409,0.62709723,42506.0,42504.0,0.6462216]
[1641757815610,0.45,42502.0,42501.0,0.004]
[1641757815811,1.37005115,42502.0,42501.0,0.004]
[1641757816010,1.47005115,42502.0,42501.0,0.004]
[1641757816312,1.45174083,42502.0,42501.0,0.004]
[1641757816511,1.018816,42502.0,42501.0,0.004]
[1641757816970,1.01890289,42502.0,42501.0,0.004]
[1641757817170,1.45218755,42502.0,42501.0,0.004]
[1641757817371,1.03390289,42502.0,42501.0,0.004]
[1641757817974,1.46269876,42502.0,42501.0,0.004]
[1641757818171,0.683596,42501.0,42496.0,0.414]
[1641757818571,0.84243156,42501.0,42496.0,0.414]
[1641757819373,0.85743156,42501.0,42496.0,0.414]
[1641757820273,0.85743156,42501.0,42496.0,0.41421006]
[1641757820514,0.84243156,42501.0,42496.0,0.00021006]
[1641757820913,0.84243156,42501.0,42483.0,0.87283932]
[1641757820914,0.8,42500.0,42483.0,0.87283932]
[1641757821115,0.85397636,42499.0,42486.0,0.058835]
[1641757821314,0.85397636,42499.0,42496.0,0.00021011]
[1641757822511,0.26504175,42492.0,42488.0,0.28245123]
[1641757822912,0.26504175,42492.0,42489.0,0.374038]
[1641757823113,0.26504175,42492.0,42489.0,0.794038]
[1641757823312,0.26604175,42492.0,42489.0,0.42]
[1641757824660,0.26504175,42492.0,42489.0,0.42]
[1641757825060,0.26004175,42492.0,42489.0,0.42]
[1641757825259,0.27504175,42492.0,42489.0,0.42]
[1641757825462,0.27504175,42492.0,42488.0,0.00012005]
[1641757825662,0.89636099,42491.0,42488.0,0.00033312]
[1641757825864,0.45459844,42491.0,42488.0,0.00021307]
[1641757826463,0.00123665,42490.0,42488.0,0.00021307]
[1641757826665,0.983596,42489.0,42488.0,0.00021307]